fUSD/lending_fUSD_20250330
["ID","MTS","AMOUNT","RATE_DAILY","PERIOD"]
[356871252,1743347453069,-163.63866833,0.00049862,120]
[356871253,1743347453079,-500.0,0.00049862,120]
[356871254,1743347453088,-291.86801407,0.00049862,120]
[356871255,1743347453097,-1160.62,0.00049862,120]
[356871256,1743347453107,-500.0,0.00049862,120]
[356871257,1743347453116,-500.0,0.00049862,120]
[356871258,1743347453125,-500.0,0.00049862,7]
[356871259,1743347453135,-500.0,0.00049862,120]
[356871260,1743347453144,-500.0,0.00049862,120]
[356871261,1743347453153,-500.0,0.00049862,120]
[356871262,1743347453162,-500.0,0.00049862,120]
[356871263,1743347453171,-500.0,0.00049862,120]
[356871264,1743347453180,-500.0,0.00049862,120]
[356871265,1743347453190,-500.0,0.00049862,120]
[356871266,1743347453199,-500.0,0.00049862,120]
[356871267,1743347453207,-2000.0,0.00049862,2]
[356871268,1743347453216,-500.0,0.00049862,120]
[356871269,1743347453225,-500.0,0.00049862,120]
[356871270,1743347453234,-500.0,0.00049862,120]
[356871271,1743347453243,-500.0,0.00049862,120]
[356871272,1743347453252,-500.0,0.00049862,120]
[356871273,1743347453261,-500.0,0.00049862,120]
[356871274,1743347453271,-682.61,0.00049862,120]
[356871275,1743347453280,-585.52919008,0.00049862,120]
[356871276,1743347453290,-500.0,0.00049862,120]
[356871277,1743347453299,-500.0,0.00049862,120]
[356871278,1743347453312,-2550.06,0.00049862,120]
[356871279,1743347453322,-500.0,0.00049862,120]
[356871280,1743347453331,-500.0,0.00049862,120]
[356871281,1743347453340,-500.0,0.00049862,120]
[356871282,1743347453349,-264.04425539,0.00049862,120]
[356871283,1743347453367,-235.95574461,0.00049862,120]
[356871284,1743347453376,-556.85353866,0.00049862,120]
[356871285,1743347453388,-1056.98646134,0.00049862,120]
[356871286,1743347453398,-500.0,0.00049862,120]
[356871287,1743347453407,-500.0,0.00049862,120]
[356871288,1743347453416,-500.0,0.00049862,120]
[356871289,1743347453425,-500.0,0.00049862,2]
[356871290,1743347453434,-500.0,0.00049862,120]
[356871291,1743347453443,-500.0,0.00049862,120]
[356871292,1743347453452,-564.42,0.00049862,120]
[356871293,1743347453462,-500.0,0.00049862,120]
[356871294,1743347453472,-67.28410717,0.00049862,120]
[356871298,1743348038063,-280.811991,0.00019,2]
[356871299,1743348038094,-179.96,0.00026849,2]
[356871300,1743348038121,-280.811991,0.00028,2]
[356871301,1743348038148,-179.96,0.00032646,2]
[356871302,1743348038176,-280.811991,0.00037,2]
[356871303,1743348038203,-280.811991,0.0003719,3]
[356871304,1743348038230,-179.96,0.00038443,2]
[356871305,1743348038256,-176.0,0.00041,14]
[356871306,1743348038283,-280.811991,0.00041592,3]
[356871307,1743348038308,-1000.0,0.000419,2]
[356871308,1743348038338,-5323.11637996,0.0004243,120]
[356871309,1743348038364,-280.811991,0.0004253,30]
[356871310,1743348038389,-176.0,0.00043151,90]
[356871311,1743348038414,-179.96,0.00044239,2]
[356871312,1743348038443,-500.0,0.00045,2]
[356871313,1743348038470,-157.66,0.00045151,30]
[356871314,1743348038499,-1151.8,0.00045885,2]
[356871315,1743348038525,-280.811991,0.00045995,3]
[356871316,1743348038552,-280.811991,0.00045999,2]
[356871317,1743348038580,-173.4,0.00046136,2]
[356871318,1743348038606,-163.32,0.00046136,2]
[356871319,1743348038632,-150.0,0.00046175,7]
[356871320,1743348038658,-200.0,0.00046238,2]
[356871321,1743348038685,-161.28,0.00046446,120]
[356871322,1743348038710,-792.65,0.0004755,120]
[356871323,1743348038739,-166.6,0.00047669,2]
[356871324,1743348038767,-280.811991,0.00048122,30]
[356871325,1743348038793,-150.0,0.00048574,4]
[356871326,1743348038821,-255.323,0.00048574,84]
[356871327,1743348038847,-500.0,0.00048574,2]
[356871328,1743348038874,-420.89,0.000489,2]
[356871329,1743348038898,-1503.3681,0.000489,2]
[356871330,1743348038923,-502.17993946,0.00048973,10]
[356871331,1743348038949,-745.0,0.00049,2]
[356871332,1743348038975,-204.7403384,0.00049304,120]
[356871333,1743348039002,-45740.61811085,0.00049305,2]
[356871334,1743348039027,-500.0,0.00049315,120]
[356871335,1743348039052,-500.0,0.00049315,120]
[356871336,1743348039081,-500.0,0.00049315,120]
[356871337,1743348039107,-500.0,0.00049315,120]
[356871338,1743348039132,-500.0,0.00049315,120]
[356871339,1743348039157,-626.1018873,0.00049315,120]
[356871340,1743348039183,-500.0,0.00049315,120]
[356871341,1743348039209,-500.0,0.00049315,120]
[356871342,1743348039236,-500.0,0.00049315,120]
[356871343,1743348039263,-602.23,0.00049315,30]
[356871344,1743348039291,-639.78,0.00049315,120]
[356871345,1743348039319,-500.0,0.00049315,120]
[356871346,1743348039349,-500.0,0.00049315,120]
[356871347,1743348039376,-500.0,0.00049315,120]
[356871348,1743348039403,-500.0,0.00049315,120]
[356871349,1743348039435,-500.0,0.00049315,120]
[356871350,1743348039462,-178.87798527,0.00049315,120]
[356871351,1743348039492,-500.0,0.00049315,120]
[356871352,1743348039519,-567.63,0.00049315,120]
[356871353,1743348039550,-240.1416859,0.00049315,120]
[356871354,1743348039582,-500.0,0.00049315,120]
[356871355,1743348039610,-500.0,0.00049315,120]
[356871356,1743348039640,-500.0,0.00049315,120]
[356871357,1743348039669,-220.18207288,0.00049315,120]
[356871358,1743348039696,-600.91252676,0.00049315,120]
[356871359,1743348039723,-500.0,0.00049315,120]
[356871360,1743348039752,-527.88,0.00049315,120]
[356871361,1743348039779,-500.0,0.00049315,120]
[356871362,1743348039804,-500.0,0.00049315,120]
[356871363,1743348039832,-500.0,0.00049315,120]
[356871364,1743348039858,-359.00080261,0.00049315,120]
[356871365,1743348039883,-500.0,0.00049315,120]
[356871366,1743348039910,-332.63184326,0.00049315,120]
[356871367,1743348039936,-500.0,0.00049315,120]
[356871368,1743348039963,-437.82308922,0.00049315,120]
[356871369,1743348039990,-500.0,0.00049315,120]
[356871370,1743348040017,-500.0,0.00049315,120]
[356871371,1743348040044,-500.0,0.00049315,120]
[356871372,1743348040081,-500.0,0.00049315,120]
[356871373,1743348040111,-500.0,0.00049315,120]
[356871374,1743348040139,-417.22761204,0.00049315,120]
[356871375,1743348040166,-500.0,0.00049315,120]
[356871376,1743348040193,-500.0,0.00049315,120]
[356871377,1743348040239,-500.0,0.00049315,120]
[356871378,1743348040285,-623.66003202,0.00049315,120]
[356871379,1743348040329,-500.0,0.00049315,120]
[356871380,1743348040376,-500.0,0.00049315,120]
[356871381,1743348040421,-500.0,0.00049315,120]
[356871382,1743348040468,-322.73442884,0.00049315,120]
[356871383,1743348040516,-237.39331889,0.00049315,120]
[356871384,1743348040563,-500.0,0.00049315,120]
[356871385,1743348040612,-500.0,0.00049315,120]
[356871386,1743348040657,-392.69892734,0.00049315,120]
[356871387,1743348308337,50000.0,0.00015,2]
[356871388,1743348308370,50000.0,0.00015,2]
[356871389,1743348308403,50000.0,0.00015,2]
[356871390,1743348308436,50000.0,0.00015,2]
[356871391,1743348308468,50000.0,0.00015,2]
[356871392,1743348356646,-257.53131285,0.0001489,2]
[356871397,1743348469253,-982.6262591,0.0001489,2]
[356871398,1743348469283,-500.0,0.00014973,2]
[356871399,1743348469312,-500.0,0.00014973,2]
[356871400,1743348469345,-151.94637554,0.00014999,2]
[356871401,1743348469378,-47865.42736536,0.00015,2]
[356871402,1743348470042,-50000.0,0.00015,2]
[356871403,1743348471079,-50000.0,0.00015,2]
[356871404,1743348471969,-50000.0,0.00015,2]
[356871405,1743348478182,385.85414114,0.0001,2]
[356871406,1743348478233,3733.56561774,0.0001,2]
[356871407,1743348478286,226.88716204,0.0001,2]
[356871408,1743348492643,5920.70601378,0.0002,14]
[356871480,1743348631702,-169.82572538,0.000149,2]
[356871482,1743348631712,-106.03214726,0.0001499,2]
[356871484,1743348631724,-469.42629983,0.0001499,2]
[356871485,1743348631734,-300.0,0.00014999,2]
[356871486,1743348631744,-150.0,0.00014999,2]
[356871487,1743348631753,-15920.57370017,0.00015,2]
[356871488,1743348631836,-808.25068004,0.00015,2]
[356871489,1743348631849,-310774.94180376,0.00015,2]
[356871490,1743348631983,-3502.72239358,0.00015,2]
[356871491,1743348632143,-2423.989988,0.00015,2]
[356871527,1743348637596,-6959.06706799,0.00015,2]
[356871528,1743348637627,-1834.03777224,0.00015,2]
[356871529,1743348637638,-17366.944,0.00015,2]
[356871530,1743348637648,-145560.23476862,0.00015,2]
[356871531,1743348637659,-3592.52282767,0.00015,2]
[356871532,1743348637670,-3475.24,0.00015,2]
[356871533,1743348637681,-1679.32300018,0.00015,2]
[356871534,1743348637696,-22890.84149999,0.00015,2]
[356871535,1743348637708,-3008.51019631,0.00015,2]
[356871536,1743348637722,-1684.0006106,0.00015,2]
[356871537,1743348637822,-651.3332816,0.00015,2]
[356871538,1743348637834,-450.1696604,0.00015,2]
[356871579,1743348639865,-1142.44366232,0.00015,2]
[356871581,1743348639875,-774.42425797,0.00015,2]
[356871583,1743348639886,-1611410.9974669,0.00015,2]
[356871585,1743348639896,-517616.60063277,0.00015,2]
[356871587,1743348639905,-704.71542319,0.00016216,2]
[356871589,1743348639914,-420.0,0.00016416,2]
[356871591,1743348639923,-500.0,0.00016568,2]
[356871593,1743348639932,-42036.60586185,0.00019,2]
[356871595,1743348639941,-150.12,0.0002,2]
[356871597,1743348639950,-704.71542313,0.0002007,2]
[356871599,1743348639959,-704.71542313,0.00023924,2]
[356871601,1743348639969,-5000.00136612,0.00024,5]
[356871603,1743348639978,-358.6964615,0.00024773,2]
[356871605,1743348639987,-449099.446308,0.000248,2]
[356871607,1743348639996,-704.71542313,0.00027777,2]
[356871609,1743348640006,-259.60013629,0.00028,60]
[356871610,1743348640015,-704.71542313,0.00031631,2]
[356871611,1743348640025,-723.06452148,0.00032265,4]
[356871612,1743348640034,-621.37860057,0.00033265,2]
[356871613,1743348640043,-500.0,0.00034265,2]
[356871614,1743348640053,-704.71542313,0.00035485,2]
[356871615,1743348640062,-7468.78072892,0.0003899,14]
[356871616,1743348640071,-704.71542313,0.00039339,2]
[356871617,1743348640080,-491.82524874,0.000399,2]
[356871618,1743348640090,-500.0,0.00039973,5]
[356871619,1743348640099,-255.8400042,0.0004,2]
[356871620,1743348640108,-165365.80945457,0.0004,14]
[356871621,1743348640118,-6386.51905558,0.0004,14]
[356871622,1743348640127,-704.71542313,0.00043192,15]
[356871623,1743348640135,-2707.85636044,0.0004399,30]
[356871624,1743348640144,-150.0,0.00043997,120]
[356871625,1743348640153,-704.71542313,0.00047046,15]
[356871626,1743348640162,-167.4,0.00047426,2]
[356871627,1743348640171,-200.06797136,0.00047792,10]
[356871628,1743348640180,-500.0,0.00047973,120]
[356871629,1743348640190,-249.1462403,0.00047973,120]
[356871630,1743348640199,-1000.0,0.00048177,2]
[356871631,1743348640208,-977.3,0.000482,36]
[356871632,1743348640217,-236.01,0.00048346,120]
[356871633,1743348640226,-150.12,0.0004849,2]
[356871634,1743348640235,-575.45844709,0.0004849,7]
[356871635,1743348640244,-1344323.7993034,0.000485,30]
[356871636,1743348640253,-381.1,0.00048521,2]
[356871637,1743348640262,-250.0,0.00048555,120]
[356871638,1743348640272,-2020.8,0.000486,14]
[356871639,1743348640281,-6000.0,0.000492,120]
[356871640,1743348640291,-488.64,0.00049289,39]
[356871641,1743348640300,-500.0,0.00049315,120]
[356871642,1743348640309,-500.0,0.00049315,120]
[356871643,1743348640319,-500.0,0.00049315,120]
[356871644,1743348640328,-584.05,0.00049315,120]
[356871645,1743348640337,-500.0,0.00049315,120]
[356871646,1743348640347,-500.0,0.00049315,120]
[356871647,1743348640356,-897.95,0.00049315,120]
[356871648,1743348640365,-500.0,0.00049315,120]
[356871649,1743348640375,-500.0,0.00049315,120]
[356871650,1743348640384,-500.0,0.00049315,120]
[356871651,1743348640393,-172.9717544,0.00049315,120]
[356871652,1743348640402,-500.0,0.00049315,120]
[356871653,1743348640411,-500.0,0.00049315,120]
[356871654,1743348640420,-500.0,0.00049315,120]
[356871655,1743348640429,-375.92977374,0.00049315,120]
[356871656,1743348640438,-500.0,0.00049315,120]
[356871657,1743348640448,-500.0,0.00049315,120]
[356871658,1743348640457,-499.32754942,0.00049315,120]
[356871659,1743348640466,-474.761075,0.00049315,120]
[356871660,1743348640475,-312.165571,0.00049315,120]
[356871661,1743348640485,-500.0,0.00049315,120]
[356871662,1743348640494,-581.50519466,0.00049315,120]
[356871663,1743348640503,-500.0,0.00049315,120]
[356871664,1743348640512,-500.0,0.00049315,120]
[356871665,1743348640522,-500.0,0.00049315,120]
[356871666,1743348640531,-500.0,0.00049315,120]
[356871667,1743348640540,-500.0,0.00049315,120]
[356871668,1743348640550,-500.0,0.00049315,120]
[356871669,1743348640559,-500.0,0.00049315,120]
[356871670,1743348640568,-500.0,0.00049315,120]
[356871671,1743348640577,-500.0,0.00049315,120]
[356871672,1743348640586,-500.0,0.00049315,120]
[356871673,1743348640595,-500.0,0.00049315,120]
[356871674,1743348640606,-500.0,0.00049315,120]
[356871675,1743348640615,-1817.7,0.00049315,120]
[356871676,1743348640625,-4889.97,0.00049315,2]
[356871677,1743348640638,-527.94,0.00049315,120]
[356871678,1743348640648,-500.0,0.00049315,120]
[356871679,1743348640658,-500.0,0.00049315,120]
[356871680,1743348640668,-500.0,0.00049315,120]
[356871681,1743348640677,-500.0,0.00049315,120]
[356871682,1743348640689,-500.0,0.00049315,120]
[356871683,1743348640699,-1190.48,0.00049315,120]
[356871684,1743348640709,-500.0,0.00049315,120]
[356871685,1743348640718,-500.0,0.00049315,120]
[356871686,1743348640729,-500.0,0.00049315,120]
[356871687,1743348640738,-500.0,0.00049315,120]
[356871688,1743348640748,-500.0,0.00049315,120]
[356871689,1743348640758,-1761.32,0.00049315,120]
[356871690,1743348640771,-500.0,0.00049315,100]
[356871691,1743348640782,-500.0,0.00049315,120]
[356871692,1743348640791,-381.42758485,0.00049315,120]
[356871693,1743348640803,-500.0,0.00049315,120]
[356871694,1743348640813,-500.0,0.00049315,120]
[356871695,1743348640823,-500.0,0.00049315,120]
[356871696,1743348640833,-500.0,0.00049315,120]
[356871697,1743348640842,-500.0,0.00049315,120]
[356871698,1743348640851,-500.0,0.00049315,120]
[356871699,1743348640865,-500.0,0.00049315,120]
[356871700,1743348640874,-500.0,0.00049315,120]
[356871701,1743348640883,-607.49941861,0.00049315,120]
[356871702,1743348640892,-2176.63648391,0.0004937,2]
[356871703,1743348640902,-17958.943,0.00049379,2]
[356871704,1743348640911,-1350.654,0.00049379,2]
[356871705,1743348640920,-5399.9368,0.00049389,2]
[356871706,1743348640929,-6384.94,0.00049478,2]
[356871707,1743348640939,-500.0,0.00049478,2]
[356871708,1743348640948,-500.0,0.00049478,2]
[356871709,1743348640957,-1560.44,0.00049478,2]
[356871710,1743348640967,-500.0,0.00049487,120]
[356871711,1743348640976,-500.0,0.00049487,120]
[356871712,1743348640985,-500.0,0.00049487,120]
[356871713,1743348640996,-500.0,0.00049487,120]
[356871714,1743348641005,-500.0,0.00049487,120]
[356871715,1743348641014,-500.0,0.00049487,120]
[356871716,1743348641023,-500.0,0.00049487,120]
[356871717,1743348641032,-500.0,0.00049487,120]
[356871718,1743348641044,-500.0,0.00049487,120]
[356871719,1743348641054,-500.0,0.00049487,120]
[356871720,1743348641063,-500.0,0.00049487,120]
[356871721,1743348641072,-500.0,0.00049487,120]
[356871722,1743348641082,-500.0,0.00049487,120]
[356871723,1743348641091,-835.68,0.00049487,120]
[356871724,1743348641102,-500.0,0.00049487,120]
[356871725,1743348641113,-500.0,0.00049488,120]
[356871726,1743348641122,-500.0,0.00049488,120]
[356871727,1743348641132,-578.38756423,0.00049488,120]
[356871728,1743348641142,-500.0,0.00049488,120]
[356871729,1743348641152,-521.95675811,0.00049488,120]
[356871730,1743348641161,-540.39350898,0.00049488,120]
[356871731,1743348641170,-453.86775765,0.00049488,120]
[356871732,1743348641180,-500.0,0.00049488,120]
[356871733,1743348641190,-500.0,0.00049488,120]
[356871734,1743348641199,-317.12873507,0.00049488,120]
[356871735,1743348641208,-1387.03,0.00049488,120]
[356871736,1743348641217,-500.0,0.00049488,120]
[356871737,1743348641226,-500.0,0.00049488,120]
[356871738,1743348641236,-500.0,0.00049488,120]
[356871739,1743348641245,-1520.54,0.00049488,120]
[356871740,1743348641254,-500.0,0.00049488,120]
[356871741,1743348641263,-158.14941576,0.00049488,120]
[356871742,1743348641273,-500.0,0.00049488,120]
[356871743,1743348641282,-500.0,0.00049488,120]
[356871744,1743348641291,-500.0,0.00049488,120]
[356871745,1743348641301,-577.13,0.00049488,30]
[356871746,1743348641311,-500.0,0.00049488,120]
[356871747,1743348641320,-500.0,0.00049488,120]
[356871748,1743348641329,-613.12,0.00049488,120]
[356871749,1743348641339,-633.71984712,0.00049488,120]
[356871750,1743348641348,-500.0,0.00049488,120]
[356871751,1743348641357,-500.0,0.00049488,120]
[356871752,1743348641366,-500.0,0.00049488,120]
[356871753,1743348641376,-500.0,0.00049488,120]
[356871754,1743348641385,-500.0,0.00049488,120]
[356871755,1743348641394,-500.0,0.00049488,120]
[356871756,1743348641403,-168.11423873,0.00049488,120]
[356871757,1743348641412,-500.0,0.00049488,120]
[356871758,1743348641422,-543.98,0.00049488,120]
[356871759,1743348641431,-500.0,0.00049488,120]
[356871760,1743348641440,-500.0,0.00049488,120]
[356871761,1743348641449,-500.0,0.00049488,120]
[356871762,1743348641458,-500.0,0.00049488,120]
[356871763,1743348641467,-500.0,0.00049488,120]
[356871764,1743348641476,-500.0,0.00049488,120]
[356871765,1743348641486,-500.0,0.00049488,120]
[356871766,1743348641495,-500.0,0.00049488,120]
[356871767,1743348641504,-500.0,0.00049488,120]
[356871768,1743348641516,-500.0,0.00049488,120]
[356871769,1743348641529,-500.0,0.00049488,120]
[356871770,1743348641539,-180.76036029,0.00049488,120]
[356871771,1743348641548,-500.0,0.00049488,120]
[356871772,1743348641558,-500.0,0.00049488,120]
[356871773,1743348641567,-500.0,0.00049488,120]
[356871774,1743348641576,-500.0,0.00049488,120]
[356871775,1743348641585,-292.35284935,0.00049488,120]
[356871776,1743348641595,-500.0,0.00049488,120]
[356871777,1743348641604,-500.0,0.00049488,120]
[356871778,1743348641613,-500.0,0.00049488,120]
[356871779,1743348641623,-500.0,0.00049488,120]
[356871780,1743348641632,-500.0,0.00049488,120]
[356871781,1743348641641,-500.0,0.00049488,120]
[356871782,1743348641651,-608.87,0.00049488,120]
[356871783,1743348641660,-500.0,0.00049488,120]
[356871784,1743348641670,-500.0,0.00049488,120]
[356871785,1743348641679,-500.0,0.00049488,120]
[356871786,1743348641690,-500.0,0.00049488,120]
[356871787,1743348641700,-500.0,0.00049488,120]
[356871788,1743348641710,-500.0,0.00049488,120]
[356871789,1743348641719,-500.0,0.00049488,120]
[356871790,1743348641728,-500.0,0.00049488,120]
[356871791,1743348641739,-500.0,0.00049488,120]
[356871792,1743348641749,-370.35624239,0.00049488,120]
[356871793,1743348641758,-500.0,0.00049488,120]
[356871794,1743348641770,-500.0,0.00049488,120]
[356871795,1743348641779,-1010.2,0.00049488,30]
[356871796,1743348641789,-500.0,0.00049488,120]
[356871797,1743348641799,-500.0,0.00049488,120]
[356871798,1743348641808,-500.0,0.00049488,120]
[356871799,1743348641818,-500.0,0.00049488,120]
[356871800,1743348641827,-500.0,0.00049488,120]
[356871801,1743348641837,-500.0,0.00049488,120]
[356871802,1743348641847,-500.0,0.00049488,120]
[356871803,1743348641857,-500.0,0.00049488,120]
[356871804,1743348641867,-500.0,0.00049488,120]
[356871805,1743348641876,-1051.72,0.00049488,120]
[356871806,1743348641885,-500.0,0.00049488,120]
[356871807,1743348641895,-500.0,0.00049488,120]
[356871808,1743348641905,-500.0,0.00049488,120]
[356871809,1743348641914,-500.0,0.00049488,120]
[356871810,1743348641924,-500.0,0.00049488,120]
[356871811,1743348642098,-500.0,0.00049488,120]
[356871812,1743348642109,-500.0,0.00049488,7]
[356871813,1743348642119,-500.0,0.00049488,120]
[356871814,1743348642128,-769.73,0.00049488,120]
[356871815,1743348642138,-500.0,0.00049488,120]
[356871816,1743348642148,-500.0,0.00049488,120]
[356871817,1743348642157,-500.0,0.00049488,120]
[356871818,1743348642167,-481.00783691,0.00049488,120]
[356871819,1743348642177,-500.0,0.00049488,120]
[356871820,1743348642187,-500.0,0.00049488,120]
[356871821,1743348642196,-493.46646673,0.00049488,120]
[356871822,1743348642206,-249.8543126,0.00049488,120]
[356871823,1743348642215,-500.0,0.00049488,120]
[356871824,1743348642226,-500.0,0.00049488,120]
[356871825,1743348642235,-500.0,0.00049488,120]
[356871826,1743348642245,-500.0,0.00049488,120]
[356871827,1743348642255,-500.0,0.00049488,120]
[356871828,1743348642264,-772.28,0.00049488,120]
[356871829,1743348642273,-500.0,0.00049488,120]
[356871830,1743348642283,-500.0,0.00049488,120]
[356871831,1743348642292,-500.0,0.00049488,120]
[356871832,1743348642301,-2286.88,0.00049488,7]
[356871833,1743348642311,-331.04601553,0.00049488,120]
[356871834,1743348642320,-625.72,0.00049488,120]
[356871835,1743348642329,-500.0,0.00049488,120]
[356871836,1743348642339,-500.0,0.00049488,120]
[356871837,1743348642348,-2337.55,0.00049488,120]
[356871838,1743348642360,-1479.36,0.00049488,120]
[356871839,1743348642370,-500.0,0.00049488,120]
[356871840,1743348642379,-500.0,0.00049488,16]
[356871841,1743348642389,-500.0,0.00049488,120]
[356871842,1743348642398,-517.39,0.00049488,120]
[356871843,1743348642408,-438.32951189,0.00049488,120]
[356871844,1743348642418,-500.0,0.00049488,120]
[356871845,1743348642428,-500.0,0.00049488,120]
[356871846,1743348642438,-515.03739087,0.00049488,5]
[356871847,1743348642449,-243336.10527323,0.00049489,2]
[356871848,1743348642471,-1585.51161415,0.00049489,2]
[356871849,1743348642483,-3300.37141338,0.00049489,2]
[356871851,1743348642497,-771.32533088,0.00049489,2]
[356871853,1743348642509,-3853.60755,0.00049489,2]
[356871854,1743348642525,-865.76291268,0.00049489,2]
[356871855,1743348642537,-987.74933509,0.00049489,2]
[356871856,1743348642548,-26585.41919999,0.00049489,2]
[356871857,1743348642560,-277.32348794,0.00049489,2]
[356871858,1743348642572,-472.86339972,0.00049489,2]
[356871859,1743348642583,-345.16037055,0.00049489,2]
[356871860,1743348642594,-897.42943245,0.00049489,2]
[356871861,1743348642611,-1323.0,0.00049489,2]
[356871862,1743348642623,-148786.33697994,0.00049489,2]
[356871864,1743348642633,-421.1919,0.00049489,2]
[356871865,1743348642642,-1980.4009,0.00049489,2]
[356871866,1743348642652,-8070.7867,0.00049489,2]
[356871867,1743348642661,-503.36392698,0.00049588,120]
[356871868,1743348642671,-500.0,0.00049588,2]
[356871869,1743348642681,-500.0,0.00049588,3]
[356871870,1743348642691,-516.97210201,0.00049588,120]
[356871871,1743348642701,-500.0,0.00049588,120]
[356871872,1743348642711,-581.28101018,0.00049588,120]
[356871873,1743348642720,-500.0,0.00049588,120]
[356871874,1743348642731,-500.0,0.00049588,120]
[356871875,1743348642740,-500.0,0.00049588,120]
[356871876,1743348642749,-500.0,0.00049588,120]
[356871877,1743348642759,-500.0,0.00049588,120]
[356871878,1743348642772,-500.0,0.00049588,2]
[356871879,1743348642782,-500.0,0.00049588,120]
[356871880,1743348642791,-500.0,0.00049588,120]
[356871881,1743348642800,-500.0,0.00049588,120]
[356871882,1743348642810,-500.0,0.00049588,120]
[356871883,1743348642819,-201.9950039,0.00049589,120]
[356871884,1743348642830,-500.0,0.00049589,120]
[356871885,1743348642839,-500.0,0.00049589,120]
[356871886,1743348642849,-611.3475297,0.00049589,120]
[356871887,1743348642862,-493.92997851,0.00049589,120]
[356871888,1743348642871,-897.95,0.00049589,120]
[356871889,1743348642882,-500.0,0.00049589,120]
[356871890,1743348642891,-500.0,0.00049589,120]
[356871891,1743348642900,-500.0,0.00049589,120]
[356871892,1743348642910,-500.0,0.00049589,120]
[356871893,1743348642919,-500.0,0.00049589,120]
[356871894,1743348642929,-500.0,0.00049589,120]
[356871895,1743348642938,-500.0,0.00049589,120]
[356871896,1743348642947,-500.0,0.00049589,120]
[356871897,1743348642957,-550.36864613,0.00049589,120]
[356871898,1743348642966,-500.0,0.00049589,120]
[356871899,1743348642975,-500.0,0.00049589,120]
[356871900,1743348642984,-500.0,0.00049589,120]
[356871901,1743348642993,-500.0,0.00049589,120]
[356871902,1743348643003,-500.0,0.00049589,120]
[356871903,1743348643012,-500.0,0.00049589,120]
[356871904,1743348643022,-500.0,0.00049589,120]
[356871905,1743348643031,-584.86246396,0.00049589,120]
[356871906,1743348643041,-500.0,0.00049589,120]
[356871907,1743348643050,-500.0,0.00049589,120]
[356871908,1743348643059,-500.0,0.00049589,120]
[356871909,1743348643069,-500.0,0.00049589,120]
[356871910,1743348643078,-1817.7,0.00049589,120]
[356871911,1743348643087,-4889.97,0.00049589,2]
[356871912,1743348643097,-527.94,0.00049589,120]
[356871913,1743348643108,-500.0,0.00049589,120]
[356871914,1743348643118,-500.0,0.00049589,120]
[356871915,1743348643128,-500.0,0.00049589,120]
[356871916,1743348643138,-500.0,0.00049589,120]
[356871917,1743348643148,-1190.48,0.00049589,120]
[356871918,1743348643159,-253.0,0.00049589,120]
[356871919,1743348643168,-500.0,0.00049589,120]
[356871920,1743348643178,-525.91186103,0.00049589,120]
[356871921,1743348643188,-500.0,0.00049589,120]
[356871922,1743348643198,-500.0,0.00049589,120]
[356871923,1743348643207,-1761.32,0.00049589,120]
[356871924,1743348643217,-500.0,0.00049589,100]